bitfinex-derivatives/quotes_ETHF0:USTF0_20250103
["timestamp","ask_amount","ask_price","bid_price","bid_amount"]
[1735887243091,5.26406305,3448.4,3448.3,2.4244638]
[1735887243291,5.26406305,3448.4,3448.3,1.124]
[1735887243491,5.26406305,3448.4,3448.3,2.1342538]
[1735887244101,5.26406305,3448.4,3448.3,2.4244638]
[1735887244399,4.97386305,3448.4,3448.2,4.57058913]
[1735887244611,0.29021,3448.3,3448.2,5.87105293]
[1735887245090,0.29021,3448.3,3448.2,5.58084293]
[1735887245693,0.29021,3448.3,3448.2,5.87106293]
[1735887245900,5.26407305,3448.3,3448.2,1.3004738]
[1735887250798,4.97386305,3448.3,3448.2,1.3004738]
[1735887252201,4.53842382,3448.3,3448.2,1.3004738]
[1735887275026,3.40494628,3448.3,3448.2,1.0102538]
[1735887275226,3.40494628,3448.3,3448.2,1.3004738]
[1735887276127,4.53842382,3448.5,3448.2,1.0102538]
[1735887276325,5.66293438,3448.6,3448.4,1.0102538]
[1735887276527,5.66293438,3448.6,3448.5,1.3004438]
[1735887279328,5.66293438,3448.6,3448.5,0.29019]
[1735887279532,5.95312438,3448.6,3448.5,0.29019]
[1735887279728,11.25087623,3448.6,3448.5,0.29019]
[1735887280030,52.05087623,3448.6,3448.5,0.29019]
[1735887281422,10.96068623,3448.6,3448.5,0.29019]
[1735887282527,4.54075451,3448.6,3448.5,0.29019]
[1735887288925,4.83094451,3448.6,3448.5,0.29019]
[1735887289336,4.54075451,3448.6,3448.4,4.56933071]
[1735887289522,0.29019,3448.5,3448.4,4.85953071]
[1735887289727,0.29019,3448.5,3448.4,5.86978451]
[1735887291530,0.72562923,3448.5,3448.4,1.3004538]
[1735887294131,0.43543923,3448.5,3448.4,1.3004538]
[1735887298435,0.72562923,3448.5,3448.4,1.3004538]
[1735887299237,0.43543923,3448.5,3448.4,1.3004538]
[1735887299735,0.72562923,3448.5,3448.4,1.3004538]
[1735887300331,0.43543923,3448.5,3448.4,1.3004538]
[1735887301729,3.40306001,3448.5,3448.4,1.3004538]
[1735887302940,4.97619374,3448.6,3448.5,0.29019]
[1735887303138,4.97619374,3448.6,3448.5,1.3004438]
[1735887303738,4.97619374,3448.6,3448.5,2.4234438]
[1735887305644,5.26638374,3448.6,3448.5,2.4234438]
[1735887307042,4.97619374,3448.6,3448.5,2.4234438]
[1735887308737,5.26638374,3448.6,3448.5,2.4234438]
[1735887308933,4.97619374,3448.6,3448.5,2.4234438]
[1735887309542,5.26638374,3448.6,3448.5,2.4234438]
[1735887310445,5.26638374,3448.6,3448.5,2.1332538]
[1735887311637,5.26638374,3448.6,3448.5,1.0102538]
[1735887311946,5.26638374,3448.6,3448.5,2.1332538]
[1735887312345,0.72562923,3448.6,3448.5,2.1332538]
[1735887313749,0.29019,3448.6,3448.5,2.1332538]
[1735887314141,0.29019,3448.6,3448.5,1.0102538]
[1735887314744,0.72562923,3448.6,3448.5,1.0102538]
[1735887318044,0.43543923,3448.6,3448.5,1.0102538]
[1735887318245,0.43543923,3448.6,3448.5,1.3004438]
[1735887319053,4.5399026,3448.6,3448.5,1.3004438]
[1735887320151,3.40486502,3448.7,3448.5,1.0102538]
[1735887320353,3.40486502,3448.7,3448.6,1.3004438]
[1735887324755,3.40486502,3448.7,3448.6,5.8671301]
[1735887326746,3.40486502,3448.7,3448.6,4.8568763]
[1735887326953,3.40486502,3448.7,3448.6,5.8671301]
[1735887327158,3.40486502,3448.7,3448.6,6.9901301]
[1735887328655,3.40486502,3448.7,3448.6,4.8568763]
[1735887328856,3.40486502,3448.7,3448.6,5.8671301]
[1735887330356,3.40486502,3448.7,3448.6,1.3004438]
[1735887331956,0.43540972,3448.7,3448.6,1.3004438]
[1735887332858,4.5399026,3448.8,3448.6,1.0102538]
[1735887333060,4.5399026,3448.8,3448.7,0.29018]
[1735887334557,4.97531232,3448.8,3448.7,0.29018]
[1735887342266,4.5399026,3448.8,3448.7,0.29018]
[1735887343772,4.5399026,3448.8,3448.7,1.3004338]
[1735887344468,5.26548232,3448.8,3448.7,1.3004338]
[1735887347277,5.26548232,3448.8,3448.7,1.0102538]
[1735887348272,5.26548232,3448.8,3448.7,1.3004338]
[1735887348578,5.26548232,3448.8,3448.7,1.0102538]
[1735887348778,5.26548232,3448.8,3448.7,1.3004338]
[1735887349676,0.29019,3448.5,3448.4,4.5666863]
[1735887349885,1.3004438,3448.5,3448.4,4.5666863]
[1735887350177,42.1004438,3448.5,3448.4,4.5666863]
[1735887351167,0.29022,3448.2,3448.1,1.41523]
[1735887351381,0.29022,3448.2,3448.1,2.4254838]
[1735887352175,4.96756714,3448.2,3447.7,4.5666863]
[1735887352378,0.29025,3447.8,3447.7,4.5666863]
[1735887352576,1.3005038,3447.8,3447.7,4.5666863]
[1735887353990,0.43540972,3447.8,3447.7,0.29026]
[1735887355085,3.39469226,3447.8,3447.7,0.29026]
[1735887356281,3.83010198,3447.9,3447.6,1.0102538]
[1735887356489,3.83010198,3447.9,3447.8,1.3005038]
[1735887357880,3.39469226,3447.9,3447.8,1.3005038]
[1735887359181,4.12034198,3448.0,3447.9,0.29024]
[1735887359885,3.83010198,3448.0,3447.9,0.29024]
[1735887360488,4.12034198,3448.0,3447.9,0.29024]
[1735887361688,3.68493226,3448.0,3447.9,0.29024]
[1735887362084,3.68493226,3448.0,3447.8,1.0102538]
[1735887362291,3.68493226,3448.0,3447.8,1.3005038]
[1735887362479,3.68493226,3448.0,3447.9,0.29024]
[1735887362679,3.39469226,3448.0,3447.8,1.0102538]
[1735887362881,3.39469226,3448.0,3447.9,3.49804]
[1735887363283,3.39469226,3448.1,3447.9,3.2078]
[1735887363484,3.39469226,3448.1,3448.0,2.4254938]
[1735887363795,3.68492226,3448.1,3448.0,2.1352538]
[1735887364489,3.68492226,3448.1,3448.0,1.125]
[1735887364688,0.29023,3448.1,3448.0,1.125]
[1735887365894,3.68492226,3448.1,3448.0,1.125]
[1735887367001,0.29023,3448.1,3448.0,1.125]
[1735887367393,7.61274606,3448.2,3447.5,3.2078]
[1735887367599,0.29027,3447.6,3447.5,4.3318]
[1735887367896,0.29027,3447.6,3447.5,5.3420538]
[1735887368497,0.29027,3447.6,3447.5,4.2180538]
[1735887372196,1.7359238,3447.7,3447.0,6.24605159]
[1735887372402,1.7359238,3447.7,3447.1,1.0102538]
[1735887372403,0.2903,3447.2,3447.1,1.0102538]
[1735887372699,1.0102538,3447.3,3447.0,3.03825159]
[1735887372896,0.29032,3447.0,3446.9,1.124]
[1735887373300,40.8,3447.0,3446.8,4.5666863]
[1735887373502,0.29033,3446.9,3446.8,5.5769401]
[1735887374398,3.49813,3446.9,3446.8,5.5769401]
[1735887374808,3.49813,3446.9,3446.8,1.0102538]
[1735887375708,0.29033,3446.9,3446.8,1.0102538]
[1735887377506,0.29034,3446.8,3446.6,0.29035]
[1735887377706,0.29034,3446.8,3446.7,1.0102538]
[1735887378114,1.0102538,3447.1,3446.7,1.0102538]
[1735887378314,1.0102538,3447.1,3446.5,1.124]
[1735887378513,0.29034,3446.8,3446.6,0.29035]
[1735887378811,0.29034,3446.8,3446.7,1.0102538]
[1735887380612,3.2078,3447.2,3446.7,1.0102538]
[1735887380915,3.4981,3447.2,3447.1,1.0102538]
[1735887381612,0.29032,3447.0,3446.9,1.0102538]
[1735887382315,3.2078,3447.2,3446.9,1.0102538]
[1735887382519,0.29032,3447.0,3446.9,1.0102538]
[1735887382915,0.29032,3447.0,3446.9,1.3005838]
[1735887383217,3.2078,3447.2,3446.9,1.0102538]
[1735887383417,3.49811,3447.2,3447.1,1.0102538]
[1735887385815,0.29032,3447.0,3446.9,1.0102538]
[1735887386816,3.2078,3447.2,3446.9,1.0102538]
[1735887387018,0.29031,3447.1,3446.9,1.0102538]
[1735887387218,3.2078,3447.2,3446.9,1.3005838]
[1735887388314,0.29032,3447.1,3446.9,1.3005838]
[1735887388616,3.2078,3447.2,3446.9,1.0102538]
[1735887388819,0.29032,3447.0,3446.9,1.0102538]
[1735887390020,0.29032,3447.0,3446.9,1.3005838]
[1735887390316,0.29032,3447.0,3446.9,1.0102538]
[1735887393225,0.29035,3446.8,3446.6,1.41435]
[1735887393524,0.29035,3446.8,3446.7,1.0102538]
[1735887394013,0.29035,3446.8,3446.7,1.3006038]
[1735887396019,0.29035,3446.8,3446.7,1.0102538]
[1735887399727,0.29035,3446.8,3446.7,1.3006038]
[1735887402828,0.29035,3446.8,3446.7,1.0102538]
[1735887403431,0.29035,3446.8,3446.7,1.3006038]
[1735887406126,0.29035,3446.8,3446.7,1.0102538]
[1735887406723,1.0102538,3446.8,3446.4,0.29037]
[1735887406924,0.29035,3446.7,3446.4,1.3006238]
[1735887407129,1.0102538,3446.8,3446.4,1.3006238]
[1735887407633,3.26929888,3446.8,3446.4,1.3006238]
[1735887407930,0.29036,3446.6,3446.5,0.29036]
[1735887408127,3.26929888,3446.8,3446.5,0.29036]
[1735887408434,0.29035,3446.7,3446.5,0.29036]
[1735887408928,2.54939508,3446.7,3446.5,0.29036]
[1735887409127,0.29035,3446.6,3446.5,0.29036]
[1735887409933,2.54939508,3446.7,3446.5,0.29036]
[1735887410430,0.29035,3446.6,3446.5,0.29036]
[1735887411221,2.54939508,3446.6,3446.5,0.29036]
[1735887411533,0.29036,3446.5,3446.4,1.0102538]
[1735887411838,2.25904508,3446.6,3446.4,1.3006238]
[1735887412030,2.54940508,3446.6,3446.4,1.3006238]
[1735887412427,2.25904508,3446.6,3446.4,1.3006238]
[1735887413131,0.29036,3446.5,3446.4,1.3006238]
[1735887413434,2.25904508,3446.6,3446.4,1.3006238]
[1735887413732,0.29036,3446.5,3446.4,1.3006238]
[1735887413930,2.25904508,3446.6,3446.4,1.3006238]
[1735887414635,2.54940508,3446.6,3446.4,1.3006238]
[1735887415026,0.29036,3446.5,3446.4,1.3006238]
[1735887415228,2.25904508,3446.5,3446.4,1.3006238]
[1735887416235,2.54940508,3446.5,3446.4,1.3006238]
[1735887416534,2.25904508,3446.5,3446.4,1.3006238]
[1735887418036,3.68505226,3446.6,3446.5,0.29036]
[1735887418934,3.39469226,3446.6,3446.4,1.0102538]
[1735887419433,0.72604984,3446.6,3446.5,0.29036]
[1735887420230,0.43568984,3446.6,3446.5,0.29036]
[1735887420833,4.81660635,3446.7,3446.6,0.29035]
[1735887421331,4.52625635,3446.7,3446.4,1.0102538]
[1735887421532,4.52625635,3446.7,3446.6,1.3006038]
[1735887421931,4.96194619,3446.7,3446.6,1.3006038]
[1735887423438,4.52625635,3446.7,3446.6,1.3006038]
[1735887424634,4.96194619,3446.7,3446.6,1.3006038]
[1735887427137,0.43568984,3446.7,3446.6,1.3006038]
[1735887428337,4.96194619,3446.7,3446.6,1.3006038]
[1735887429841,4.96194619,3446.7,3446.4,5.5769401]
[1735887430040,0.29036,3446.6,3446.5,0.29036]
[1735887430246,0.29036,3446.5,3446.4,4.8570563]
[1735887430842,3.40016063,3446.5,3446.4,0.29037]
[1735887431241,3.69053063,3446.5,3446.3,4.8570563]
[1735887431438,3.69052063,3446.5,3446.4,0.29037]
[1735887431639,3.40016063,3446.5,3446.4,0.29037]
[1735887432039,3.69052063,3446.5,3446.4,0.29037]
[1735887432239,3.40016063,3446.5,3446.4,0.29037]
[1735887432441,4.12621047,3446.5,3446.4,0.29037]
[1735887432642,4.12621047,3446.5,3446.3,4.5666863]
[1735887432841,3.83585047,3446.5,3446.4,0.29037]
[1735887433242,4.12621047,3446.5,3446.4,0.29037]
[1735887433444,3.83585047,3446.5,3446.4,0.29037]
[1735887434546,4.12622047,3446.5,3446.4,0.29037]
[1735887434945,4.12622047,3446.5,3446.3,4.8570563]
[1735887435143,3.83585047,3446.5,3446.4,0.29037]
[1735887435348,4.12621047,3446.5,3446.4,0.29037]
[1735887435543,3.40016063,3446.5,3446.4,0.29037]
[1735887436142,3.40016063,3446.5,3446.4,1.3006238]
[1735887439546,2.26666602,3446.5,3446.4,8.15239743]
[1735887440147,2.26666602,3446.5,3446.4,13.15239743]
[1735887440447,1.77074665,3446.7,3446.6,0.29035]
[1735887440647,1.77074665,3446.7,3446.6,10.5186576]
[1735887440648,1.18890665,3446.7,3446.6,10.5186576]
[1735887440953,1.18890665,3446.7,3446.6,9.5084038]
[1735887441152,4.96194613,3446.9,3446.6,10.2283076]
[1735887441350,4.96194613,3446.9,3446.8,1.3005938]
[1735887441949,4.96194613,3446.9,3446.8,0.29034]
[1735887442244,4.96194613,3446.9,3446.6,19.14215364]
[1735887442245,0.29035,3446.7,3446.6,19.14215364]
[1735887442449,1.3006038,3446.7,3446.6,19.14215364]
[1735887442651,42.1006038,3446.7,3446.6,19.14215364]
[1735887442843,42.1006038,3446.7,3446.6,8.69063644]
[1735887443048,41.8102538,3446.7,3446.0,1.124]
[1735887443244,1.0102538,3446.1,3445.6,39.60775711]
[1735887443454,0.29043,3445.7,3445.6,39.60775711]
[1735887443656,0.29043,3445.7,3445.6,3.2078]
[1735887444251,0.29044,3445.6,3445.2,14.81538017]
[1735887444457,0.29046,3445.4,3445.2,14.81538017]
[1735887445049,0.29046,3445.4,3445.2,1.124]
[1735887448348,4.52900157,3445.9,3445.1,2.30216962]
[1735887448555,0.29047,3445.3,3445.2,1.124]
[1735887449160,0.29047,3445.3,3445.1,2.30216962]
[1735887449161,4.52900157,3445.9,3445.1,2.30216962]
[1735887449351,4.52900157,3445.9,3445.1,3.42616962]
[1735887449654,0.29047,3445.3,3445.1,3.42616962]
[1735887449856,0.29047,3445.2,3445.1,1.124]
[1735887450057,0.29047,3445.2,3445.0,2.75917686]
[1735887450251,0.29047,3445.2,3445.1,1.124]
[1735887451151,0.29047,3445.3,3445.1,1.124]
[1735887451648,0.29047,3445.2,3445.1,1.124]
[1735887451852,0.29048,3445.1,3445.0,2.75917686]
[1735887452559,0.29048,3445.2,3445.0,2.75917686]
[1735887453354,0.29048,3445.1,3445.0,0.45700724]
[1735887456360,41.09048,3445.1,3445.0,0.45700724]
[1735887456554,0.29048,3445.1,3445.0,0.45700724]
[1735887461969,3.49828,3445.1,3445.0,0.45700724]
[1735887464462,3.2078,3445.1,3444.4,5.80050962]
[1735887464765,0.29053,3444.6,3444.4,5.80050962]
[1735887465688,0.29053,3444.6,3444.4,5.50996962]
[1735887466192,3.2078,3445.1,3444.4,5.50996962]
[1735887466385,0.29053,3444.5,3444.4,2.30216962]
[1735887467679,0.29053,3444.6,3444.4,2.30216962]
[1735887467979,3.2078,3445.1,3444.4,2.30216962]
[1735887468367,3.2078,3445.1,3444.4,2.59270962]
[1735887468769,3.2078,3445.1,3444.7,2.30216962]
[1735887469069,3.2078,3445.1,3444.7,2.59267962]
[1735887469070,0.29049,3445.0,3444.7,2.59267962]
[1735887469470,0.2905,3444.9,3444.7,2.59267962]
[1735887470070,3.2078,3445.1,3444.7,2.30216962]
[1735887470568,3.2078,3445.1,3444.4,2.30216962]
[1735887470768,0.29053,3444.5,3444.3,3.2078]
[1735887470967,0.72623,3445.0,3444.3,3.2078]
[1735887471169,0.29054,3444.4,3444.3,3.2078]
[1735887471870,0.29054,3444.5,3444.3,3.2078]
[1735887472364,0.29054,3444.4,3444.3,3.2078]
[1735887472565,40.8,3444.4,3444.3,3.2078]
[1735887474275,40.8,3444.4,3444.3,3.49835]
[1735887478467,40.8,3444.4,3444.3,3.2078]
[1735887480061,40.8,3444.4,3444.3,3.49835]
[1735887480567,41.09054,3444.4,3444.3,3.2078]
[1735887480873,40.8,3444.4,3444.3,3.2078]
[1735887481072,0.29053,3444.5,3444.3,3.49835]
[1735887481272,0.29054,3444.5,3444.3,3.2078]
[1735887481475,41.09054,3444.5,3444.3,3.49834]
[1735887481776,41.09054,3444.5,3444.4,0.00216168]
[1735887481976,40.8,3444.5,3444.4,0.29270168]
[1735887482172,41.09053,3444.5,3444.4,0.00216168]
[1735887493481,0.29053,3444.5,3444.4,0.00216168]
[1735887501178,0.72648687,3444.5,3444.4,0.00216168]
[1735887502084,4.12463154,3444.5,3444.4,0.00216168]
[1735887503081,0.72648687,3444.5,3444.4,0.00216168]
[1735887504184,0.29053,3444.5,3444.4,0.00216168]
[1735887505387,0.72648687,3444.5,3444.4,0.00216168]
[1735887509290,5.25548844,3444.5,3444.4,0.00216168]
[1735887514491,0.72648687,3444.5,3444.4,0.00216168]
[1735887515585,0.29053,3444.5,3444.4,0.00216168]
[1735887516592,11.52117706,3444.5,3444.4,0.00216168]
[1735887521089,11.52117706,3444.5,3444.4,1.01460338]
[1735887522592,11.52117706,3444.5,3444.4,1.30514338]
[1735887523086,11.52117706,3444.5,3444.4,1.01460338]
[1735887523291,0.72648687,3444.5,3444.4,1.01460338]
[1735887524496,0.29053,3444.5,3444.4,1.01460338]
[1735887525198,0.29053,3444.5,3444.4,0.00216168]
[1735887525796,0.72648687,3444.5,3444.4,0.00216168]
[1735887526796,11.52287391,3444.5,3444.4,0.00216168]
[1735887533397,14.73067391,3444.5,3444.4,0.00216168]
[1735887537913,15.74311561,3444.5,3444.4,0.00216168]
[1735887540410,10.07791884,3444.5,3444.4,0.00216168]
[1735887540715,10.07791884,3444.5,3444.1,5.580486]
[1735887540716,0.29056,3444.2,3444.1,4.5680443]
[1735887540911,1.3030017,3444.2,3444.1,4.5680443]
[1735887541519,42.1030017,3444.2,3444.1,4.5680443]
[1735887542116,42.1030017,3444.2,3443.8,1.0124417]
[1735887542117,47.37958884,3444.2,3443.8,1.0124417]
[1735887542309,0.29058,3443.9,3443.8,1.0124417]
[1735887542615,3.2078,3444.1,3443.8,1.0124417]
[1735887542813,5.85770714,3444.2,3444.0,1.3030117]
[1735887543208,5.66419157,3444.1,3444.0,1.3030117]
[1735887543806,5.95475157,3444.1,3444.0,1.0124417]
[1735887544713,0.29056,3444.1,3444.0,1.0124417]
[1735887545718,4.12512764,3444.1,3444.0,1.0124417]
[1735887548826,3.83456764,3444.1,3444.0,1.0124417]
[1735887549623,3.68912612,3444.1,3444.0,1.0124417]
[1735887550717,4.12512764,3444.1,3444.0,1.0124417]
[1735887554637,4.12512764,3444.1,3443.8,3.49839]
[1735887554832,4.12512764,3444.1,3443.8,4.5108317]
[1735887555340,3.39856612,3444.0,3443.8,4.5108317]
[1735887556535,3.39856612,3444.0,3443.8,4.2202417]
[1735887556833,0.29058,3443.9,3443.8,3.2078]
[1735887557040,0.29059,3443.8,3443.7,4.5680443]
[1735887557631,0.29059,3443.8,3443.7,5.580486]
[1735887558238,1.3030317,3443.8,3443.7,5.580486]
[1735887558440,1.44848485,3443.8,3443.5,1.0124417]
[1735887558738,0.29061,3443.7,3443.5,1.3030517]
[1735887559639,0.29061,3443.7,3443.5,1.0124417]
[1735887559934,0.29061,3443.6,3443.5,1.0124417]
[1735887560939,2.55489052,3443.6,3443.5,1.0124417]
[1735887567848,0.29061,3443.6,3443.5,1.0124417]
[1735887569841,1.0124417,3443.6,3443.2,7.7758443]
[1735887570047,0.29063,3443.3,3443.2,7.7758443]
[1735887571543,41.09063,3443.4,3443.2,8.0664843]
[1735887571749,2.26428052,3443.3,3443.2,3.49844]
[1735887571936,2.26428052,3443.3,3443.2,4.5108817]
[1735887572339,2.26428052,3443.3,3443.2,4.2202417]
[1735887572543,2.26428052,3443.3,3443.2,4.5108817]
[1735887572943,2.26428052,3443.3,3443.2,4.2202417]
[1735887573144,2.26428052,3443.3,3443.2,4.5108817]
[1735887573748,2.26428052,3443.3,3443.2,4.2202417]
[1735887573944,2.26428052,3443.3,3443.2,4.5108817]
[1735887574148,2.26428052,3443.3,3443.2,4.2202417]
[1735887575354,3.56735222,3443.3,3443.2,4.2202417]
[1735887575547,3.27672222,3443.3,3443.2,4.2202417]
[1735887576054,44.36735222,3443.3,3443.2,4.2202417]
[1735887576251,3.27672222,3443.3,3443.2,4.2202417]
[1735887576753,3.27672222,3443.3,3443.2,4.5108817]
[1735887577154,2.26428052,3443.3,3443.2,4.2202417]
[1735887578146,2.26428052,3443.3,3443.2,1.0124417]
[1735887579351,2.55491052,3443.3,3443.2,1.0124417]
[1735887580352,2.26428052,3443.3,3443.2,1.0124417]
[1735887580559,2.26428052,3443.3,3443.2,1.3030817]
[1735887581261,2.26428052,3443.3,3443.2,1.0124417]
[1735887581465,2.55491052,3443.3,3443.2,1.0124417]
[1735887583761,2.26428052,3443.3,3443.2,1.0124417]
[1735887584961,3.56735222,3443.3,3443.2,1.0124417]
[1735887585264,3.56735222,3443.3,3443.0,0.29065]
[1735887585265,0.29065,3443.2,3443.0,1.3030917]
[1735887585453,1.0124417,3443.1,3442.9,3.2078]
[1735887585657,1.0124417,3443.1,3442.9,4.5109017]
[1735887586557,0.29065,3443.2,3442.9,4.5109017]
[1735887586558,0.29065,3443.2,3443.0,0.29066]
[1735887586758,2.55493052,3443.2,3443.0,0.29066]
[1735887587052,2.26428052,3443.2,3442.9,3.2078]
[1735887587256,0.29066,3443.0,3442.9,3.2078]
[1735887587458,0.29066,3443.0,3442.9,4.2202417]
[1735887588263,1.0124417,3443.1,3442.9,4.2202417]
[1735887588264,1.3030917,3443.1,3442.9,4.5109117]
[1735887588959,3.56737222,3443.1,3442.9,4.5109117]
[1735887590763,3.27672222,3443.1,3442.9,4.2202417]
[1735887590965,3.56737222,3443.1,3442.9,4.5109117]
[1735887594364,3.56737222,3443.1,3443.0,0.29066]
[1735887594365,3.27672222,3443.1,3443.0,0.29066]
[1735887594567,2.55493052,3443.1,3443.0,0.29066]
[1735887594859,2.55493052,3443.1,3442.9,4.5109017]
[1735887595064,2.55493052,3443.1,3443.0,0.29066]
[1735887595463,2.26428052,3443.1,3442.9,4.5109017]
[1735887595661,2.55493052,3443.1,3442.9,4.5109017]
[1735887596361,2.26428052,3443.1,3442.9,4.2202417]
[1735887596664,2.55493052,3443.1,3443.0,0.29066]
[1735887596965,2.55493052,3443.1,3442.9,4.5109017]
[1735887597356,2.26428052,3443.1,3442.9,4.5109017]
[1735887597559,2.55493052,3443.1,3443.0,0.29066]
[1735887598059,2.55493052,3443.1,3443.0,1.3031017]
[1735887598060,2.26428052,3443.1,3443.0,1.3031017]
[1735887598254,3.3971205,3443.2,3443.0,1.0124417]
[1735887598463,3.3971205,3443.2,3443.1,0.29065]
[1735887599566,2.8599005,3443.9,3443.1,0.29065]
[1735887599762,43.3693205,3443.9,3443.7,1.3030317]
[1735887600466,0.2906,3443.7,3443.6,1.124]
[1735887601964,0.72666706,3443.7,3443.6,1.124]
[1735887603764,0.43606706,3443.7,3443.6,1.124]
[1735887603964,0.72666706,3443.7,3443.6,1.124]
[1735887604165,41.23606706,3443.7,3443.6,1.41461]
[1735887604963,41.52666706,3443.7,3443.6,1.41461]
[1735887605164,41.23606706,3443.7,3443.6,1.41461]
[1735887605869,0.43606706,3443.7,3443.6,1.41461]
[1735887606871,0.72666706,3443.7,3443.6,1.41461]
[1735887607165,0.43606706,3443.7,3443.6,1.41461]
[1735887607359,0.43606706,3443.7,3443.6,2.4270517]
[1735887608161,0.43606706,3443.7,3443.6,2.1364417]
[1735887608570,0.72666706,3443.7,3443.6,2.1364417]
[1735887608763,4.53178994,3443.8,3443.6,2.1364417]
[1735887608970,0.29059,3443.8,3443.6,2.1364417]
[1735887609864,1.3030317,3443.9,3443.7,0.2906]
[1735887610057,0.29059,3443.9,3443.7,0.2906]
[1735887610968,0.29059,3443.9,3443.6,2.4270417]
[1735887611568,1.3030417,3443.7,3443.6,1.124]
[1735887611768,0.29062,3443.5,3443.4,4.56550859]
[1735887611968,1.3030617,3443.5,3443.4,4.56550859]
[1735887612166,7.73958994,3444.1,3443.4,5.57795029]
[1735887612469,7.92810814,3444.9,3444.5,0.29053]
[1735887612470,0.29051,3444.8,3444.5,0.29053]
[1735887612662,8.21860814,3444.9,3444.6,1.0124417]
[1735887612972,7.92810814,3444.9,3444.6,1.3029617]
[1735887614074,9.11429843,3445.1,3444.6,1.3029617]
[1735887614075,4.96518813,3444.8,3444.7,0.29051]
[1735887614278,4.96518813,3444.8,3444.7,2.59286548]
[1735887615472,3.49826,3445.4,3445.0,0.29049]
[1735887615674,3.49826,3445.4,3445.0,1.41449]
[1735887616171,3.2078,3445.4,3445.0,1.124]
[1735887616566,0.29047,3445.2,3445.0,1.124]
[1735887616872,3.2078,3445.4,3445.0,1.124]
[1735887617074,0.29047,3445.3,3445.0,1.124]
[1735887617273,3.2078,3445.4,3445.0,1.124]
[1735887617575,0.29046,3445.3,3445.0,1.124]
[1735887618075,0.29045,3445.5,3445.1,0.29048]
[1735887618281,40.8,3445.3,3445.1,0.29048]
[1735887618672,40.8,3445.3,3445.0,1.124]
[1735887618971,40.8,3445.3,3445.1,0.29048]
[1735887619277,40.8,3445.3,3445.2,0.29047]
[1735887619671,40.8,3445.3,3445.0,1.124]
[1735887619987,40.8,3445.3,3445.2,0.29047]
[1735887622371,0.29043,3445.8,3445.4,0.29045]
[1735887622575,0.29042,3445.8,3445.4,0.29045]
[1735887622778,0.29043,3445.7,3445.3,0.29046]
[1735887622982,40.8,3445.6,3445.3,0.29046]
[1735887623283,40.8,3445.6,3445.1,0.29048]
[1735887623483,0.29043,3445.8,3445.4,0.29045]
[1735887623676,0.29043,3445.7,3445.3,0.29046]
[1735887623879,41.09043,3445.7,3445.3,0.29046]
[1735887624081,40.8,3445.7,3445.0,3.42635548]
[1735887624274,41.09044,3445.7,3445.3,0.29046]
[1735887625475,41.09044,3445.7,3445.2,1.124]
[1735887625476,43.10235548,3445.7,3445.2,1.124]
[1735887625888,0.29045,3445.5,3445.2,1.124]
[1735887626071,43.10235548,3445.7,3445.2,1.124]
[1735887626272,0.29044,3445.6,3445.2,1.41446]
[1735887627191,0.29044,3445.6,3445.3,0.29046]
[1735887629186,0.29045,3445.5,3445.2,1.124]
[1735887629483,0.29046,3445.3,3445.2,1.124]
[1735887630288,0.29046,3445.4,3445.2,1.124]
[1735887632183,0.29046,3445.3,3445.2,1.124]
[1735887633381,3.2078,3445.5,3445.2,1.124]
[1735887633587,0.29046,3445.4,3445.2,1.124]
[1735887634391,3.2078,3445.5,3445.2,1.41447]
[1735887634689,0.29046,3445.4,3445.2,1.41447]
[1735887634985,0.29046,3445.4,3445.2,1.124]
[1735887635581,0.29046,3445.3,3445.2,1.124]
[1735887637490,0.29046,3445.4,3445.2,1.124]
[1735887637788,0.29046,3445.3,3445.2,1.124]
[1735887638088,0.29046,3445.3,3445.1,1.01212826]
[1735887638284,4.21992826,3445.5,3445.1,1.01212826]
[1735887638592,1.01212826,3445.3,3444.9,2.13612826]
[1735887638787,0.29049,3445.0,3444.9,1.124]
[1735887638983,0.29051,3444.8,3444.6,1.123]
[1735887639883,1.01212826,3444.9,3444.6,1.123]
[1735887640279,0.29051,3444.7,3444.6,1.123]
[1735887640486,0.29051,3444.8,3444.6,1.123]
[1735887640791,0.29051,3444.7,3444.6,1.123]
[1735887642288,0.29055,3444.4,3444.3,1.123]
[1735887642585,0.29055,3444.3,3444.1,0.29056]
[1735887642786,0.29056,3444.1,3444.0,4.3308]
[1735887642983,0.29056,3444.1,3443.8,3.04224803]
[1735887643189,0.29056,3444.1,3443.8,1.124]
[1735887643487,0.29056,3444.1,3443.8,1.41458]
[1735887645192,0.29056,3444.2,3443.8,1.41458]
[1735887645587,40.8,3444.3,3444.1,0.29056]
[1735887645783,0.29053,3444.5,3444.0,0.29057]
[1735887645991,0.29053,3444.5,3444.2,0.29055]
[1735887646294,3.2078,3444.6,3443.9,2.30339546]
[1735887646497,3.2078,3444.6,3444.3,0.29054]
[1735887646688,3.2078,3444.6,3443.9,2.30339546]
[1735887646989,3.49832,3444.6,3444.3,0.29054]
[1735887648794,0.29053,3444.5,3444.3,0.29054]
[1735887649189,3.49833,3444.6,3444.3,0.29054]
[1735887650291,0.29053,3444.5,3444.3,0.29054]
[1735887650894,0.29053,3444.5,3444.2,1.41455]
[1735887651290,0.29053,3444.5,3444.3,0.29055]
[1735887651792,3.2078,3444.6,3444.4,0.29053]
[1735887652189,3.2078,3444.6,3444.2,3.42739546]
[1735887652391,3.2078,3444.6,3444.4,0.29054]
[1735887652993,3.2078,3444.6,3444.2,3.42739546]
[1735887653197,0.29053,3444.5,3444.3,0.29055]
[1735887653791,3.2078,3444.6,3444.3,0.29055]
[1735887653993,3.49833,3444.6,3444.3,0.29055]
[1735887654297,3.2078,3444.6,3444.3,0.29055]
[1735887654497,0.29054,3444.5,3444.2,1.41455]
[1735887654698,0.29054,3444.4,3444.2,1.124]
[1735887654895,0.29055,3444.3,3444.2,1.124]
[1735887660394,6.59922209,3444.6,3444.2,1.41455]
[1735887660589,0.29053,3444.5,3444.2,1.41455]
[1735887660794,6.59922209,3444.6,3444.2,1.41455]
[1735887660996,0.29054,3444.4,3444.2,1.41455]
[1735887661298,0.29054,3444.5,3444.2,1.41455]
[1735887661494,0.29054,3444.4,3444.2,1.124]
[1735887661702,0.29054,3444.4,3444.2,1.41456]
[1735887662300,3.2078,3444.6,3444.2,1.41456]